fUST/lending_fUST_20250719
["ID","MTS","AMOUNT","RATE_DAILY","PERIOD"]
[373220795,1752911441653,-209.0,0.00017046,3]
[373220796,1752911441663,-627.03,0.00017046,3]
[373220797,1752911441673,-460.0,0.00017144,2]
[373220798,1752911441684,-460.0,0.00017144,2]
[373220799,1752911441697,-196.37480375,0.00017144,2]
[373220800,1752911441707,-591.19851294,0.00017144,2]
[373220801,1752911441718,-460.0,0.00017144,2]
[373220802,1752911441728,-460.0,0.00017145,2]
[373220803,1752911441738,-1993.92,0.00017145,2]
[373220804,1752911441748,-460.0,0.00017145,2]
[373220805,1752911441759,-460.0,0.00017145,2]
[373220806,1752911441769,-1236.73,0.00017145,2]
[373220807,1752911441779,-1305.08,0.00017145,2]
[373220808,1752911441789,-475.64,0.00017145,2]
[373220809,1752911441799,-460.0,0.00017145,2]
[373220810,1752911441810,-383.53953217,0.00017145,2]
[373220811,1752911441822,-460.0,0.00017145,2]
[373220812,1752911441840,-460.0,0.00017145,2]
[373220813,1752911441857,-523.1,0.00017145,2]
[373220814,1752911441872,-246.82,0.00017145,2]
[373220815,1752911441887,-460.0,0.00017145,2]
[373220816,1752911441901,-460.0,0.00017145,2]
[373220817,1752911441914,-460.0,0.00017145,2]
[373220818,1752911441929,-460.0,0.00017145,2]
[373220819,1752911441944,-460.0,0.00017145,2]
[373220820,1752911441957,-460.0,0.00017145,2]
[373220821,1752911441971,-460.0,0.00017145,2]
[373220822,1752911441986,-1546.09,0.00017145,2]
[373220823,1752911442000,-460.0,0.00017145,2]
[373220824,1752911442013,-347.84,0.00017145,2]
[373220825,1752911442028,-4334.04,0.00017145,2]
[373220826,1752911442043,-460.0,0.00017145,2]
[373220827,1752911442055,-728.86,0.00017145,2]
[373220828,1752911442070,-584.21335087,0.00017145,2]
[373220829,1752911442083,-448.49853543,0.00017145,2]
[373220830,1752911442099,-460.0,0.00017145,2]
[373220831,1752911442112,-469.08121383,0.00017145,2]
[373220832,1752911442125,-460.0,0.00017145,2]
[373220833,1752911442138,-2066.13,0.00017145,2]
[373220834,1752911442151,-2512.47,0.00017145,2]
[373220835,1752911442164,-2254.93,0.00017145,2]
[373220836,1752911442175,-460.0,0.00017145,2]
[373220837,1752911442186,-588.71,0.00017145,2]
[373220838,1752911442199,-460.0,0.00017145,2]
[373220839,1752911442210,-910.07,0.00017145,2]
[373220840,1752911442223,-460.0,0.00017146,2]
[373220841,1752911442235,-460.0,0.00017146,2]
[373220842,1752911442249,-460.0,0.00017146,2]
[373220843,1752911442262,-460.0,0.00017146,2]
[373220844,1752911442275,-460.0,0.00017146,2]
[373220845,1752911442289,-460.0,0.00017146,2]
[373220846,1752911442303,-460.0,0.00017146,2]
[373220847,1752911442315,-460.0,0.00017146,2]
[373220848,1752911442329,-460.0,0.00017146,2]
[373220849,1752911442340,-460.0,0.00017146,2]
[373220850,1752911442351,-460.0,0.00017146,2]
[373220851,1752911442362,-460.0,0.00017146,2]
[373220852,1752911442373,-460.0,0.00017146,2]
[373220853,1752911442385,-460.0,0.00017146,2]
[373220854,1752911442399,-460.0,0.00017146,2]
[373220855,1752911442412,-460.0,0.00017146,2]
[373220856,1752911442424,-460.0,0.00017146,2]
[373220857,1752911442434,-460.0,0.00017146,2]
[373220858,1752911442447,-460.0,0.00017146,2]
[373220859,1752911442459,-460.0,0.00017146,2]
[373220860,1752911442472,-541.31927437,0.00017146,2]
[373220861,1752911442485,-460.0,0.00017146,2]
[373220862,1752911442495,-439.75262341,0.00017146,2]
[373220863,1752911442506,-460.0,0.00017146,2]
[373220864,1752911442517,-460.0,0.00017146,2]
[373220865,1752911442529,-524.53,0.00017146,2]
[373220866,1752911442541,-460.0,0.00017146,2]
[373220867,1752911442553,-289.58584627,0.00017146,2]
[373220868,1752911442566,-1114.02,0.00017146,2]
[373220869,1752911442579,-460.0,0.00017146,2]
[373220870,1752911442592,-460.0,0.00017146,2]
[373220871,1752911442605,-460.0,0.00017146,2]
[373220872,1752911442616,-460.0,0.00017146,2]
[373220873,1752911442629,-367.00235644,0.00017146,2]
[373220874,1752911442641,-460.0,0.00017146,2]
[373220875,1752911442653,-460.0,0.00017146,2]
[373220876,1752911442665,-460.0,0.00017146,2]
[373220877,1752911442677,-1333.58,0.00017146,2]
[373220878,1752911442690,-460.0,0.00017146,2]
[373220879,1752911442702,-460.0,0.00017146,2]
[373220880,1752911442714,-224.85730521,0.00017146,2]
[373220881,1752911442725,-460.0,0.00017146,2]
[373220882,1752911442736,-781.21,0.00017146,2]
[373220883,1752911442748,-460.0,0.00017146,2]
[373220884,1752911442759,-460.0,0.00017146,2]
[373220885,1752911442770,-258.82693295,0.00017146,2]
[373220886,1752911442781,-460.0,0.00017146,2]
[373220887,1752911442793,-750.03,0.00017146,2]
[373220888,1752911442804,-460.0,0.00017146,2]
[373220889,1752911442816,-460.0,0.00017146,2]
[373220890,1752911442827,-460.0,0.00017146,2]
[373220891,1752911442838,-460.0,0.00017146,2]
[373220892,1752911442849,-865.2,0.00017146,2]
[373220893,1752911442860,-460.0,0.00017146,2]
[373220894,1752911442872,-582.8,0.00017146,2]
[373220895,1752911442884,-465.02,0.00017146,2]
[373220896,1752911442896,-460.0,0.00017147,2]
[373220897,1752911442908,-460.0,0.00017147,2]
[373220898,1752911442919,-460.0,0.00017148,2]
[373220899,1752911442930,-460.0,0.00017148,2]
[373220900,1752911442941,-460.0,0.00017148,2]
[373220901,1752911442953,-460.0,0.00017148,2]
[373220902,1752911442964,-476.63075359,0.00017148,2]
[373220903,1752911442976,-460.0,0.00017148,2]
[373220904,1752911442988,-460.0,0.00017148,2]
[373220905,1752911443002,-460.0,0.00017149,2]
[373220906,1752911443014,-460.0,0.00017418,2]
[373220907,1752911443025,-460.0,0.00017418,2]
[373220908,1752911443037,-460.0,0.00017419,2]
[373220909,1752911443048,-1993.92,0.00017419,2]
[373220910,1752911443062,-460.0,0.00017419,2]
[373220911,1752911443075,-460.0,0.00017419,2]
[373220912,1752911443086,-1236.73,0.00017419,2]
[373220913,1752911443097,-1305.08,0.00017419,2]
[373220914,1752911443111,-475.64,0.00017419,2]
[373220915,1752911443123,-460.0,0.00017419,2]
[373220916,1752911443135,-460.0,0.00017419,2]
[373220917,1752911443148,-523.1,0.00017419,2]
[373220918,1752911443165,-460.0,0.00017419,2]
[373220919,1752911443181,-460.0,0.00017419,2]
[373220920,1752911443193,-418.18023803,0.00017419,2]
[373220921,1752911443205,-460.0,0.00017419,2]
[373220922,1752911443216,-460.0,0.00017419,2]
[373220923,1752911443228,-1546.09,0.00017419,2]
[373220924,1752911443239,-460.0,0.00017419,2]
[373220925,1752911443251,-4334.04,0.00017419,2]
[373220926,1752911443263,-460.0,0.00017419,2]
[373220927,1752911443275,-728.86,0.00017419,2]
[373220928,1752911443287,-460.0,0.00017419,2]
[373220929,1752911443308,-460.0,0.00017419,2]
[373220930,1752911443321,-2066.13,0.00017419,2]
[373220931,1752911443333,-2512.47,0.00017419,2]
[373220932,1752911443342,-2254.93,0.00017419,2]
[373220933,1752911443352,-460.0,0.00017419,2]
[373220934,1752911443362,-588.71,0.00017419,2]
[373220935,1752911443372,-460.0,0.00017419,2]
[373220938,1752911443556,-910.07,0.00017419,2]
[373220939,1752911443570,-460.0,0.0001742,2]
[373220940,1752911443580,-474.64235238,0.0001742,2]
[373220941,1752911443592,-460.0,0.0001742,2]
[373220942,1752911443603,-460.0,0.0001742,2]
[373220943,1752911443614,-460.0,0.0001742,2]
[373220944,1752911443623,-460.0,0.0001742,2]
[373220945,1752911443633,-460.0,0.0001742,2]
[373220946,1752911443642,-460.0,0.0001742,2]
[373220947,1752911443651,-460.0,0.0001742,2]
[373220948,1752911443661,-460.0,0.0001742,2]
[373220949,1752911443670,-460.0,0.0001742,2]
[373220950,1752911443680,-460.0,0.0001742,2]
[373220951,1752911443690,-460.0,0.0001742,2]
[373220952,1752911443699,-460.0,0.0001742,2]
[373220953,1752911443708,-460.0,0.0001742,2]
[373220954,1752911443718,-460.0,0.0001742,2]
[373220955,1752911443727,-460.0,0.0001742,2]
[373220956,1752911443737,-460.0,0.0001742,2]
[373220957,1752911443747,-460.0,0.0001742,2]
[373220958,1752911443756,-460.0,0.0001742,2]
[373220959,1752911443766,-460.0,0.0001742,2]
[373220960,1752911443775,-524.53,0.0001742,2]
[373220961,1752911443785,-460.0,0.0001742,2]
[373220962,1752911443795,-1114.02,0.0001742,2]
[373220963,1752911443804,-460.0,0.0001742,2]
[373220964,1752911443814,-460.0,0.0001742,2]
[373220965,1752911443823,-460.0,0.0001742,2]
[373220966,1752911443833,-460.0,0.0001742,2]
[373220967,1752911443842,-460.0,0.0001742,2]
[373220968,1752911443852,-460.0,0.0001742,2]
[373220969,1752911443861,-460.0,0.0001742,2]
[373220970,1752911443871,-1333.58,0.0001742,2]
[373220971,1752911443880,-460.0,0.0001742,2]
[373220972,1752911443890,-460.0,0.0001742,2]
[373220973,1752911443900,-607.51956945,0.0001742,2]
[373220974,1752911443910,-781.21,0.0001742,2]
[373220975,1752911443919,-460.0,0.0001742,2]
[373220976,1752911443929,-460.0,0.0001742,2]
[373220977,1752911443938,-460.0,0.0001742,2]
[373220978,1752911443949,-750.03,0.0001742,2]
[373220979,1752911443958,-460.0,0.0001742,2]
[373220980,1752911443968,-460.0,0.0001742,2]
[373220981,1752911443978,-460.0,0.0001742,2]
[373220982,1752911443991,-865.2,0.0001742,2]
[373220983,1752911444001,-460.0,0.0001742,2]
[373220984,1752911444011,-582.8,0.0001742,2]
[373220985,1752911444020,-465.02,0.0001742,2]
[373220986,1752911444030,-460.0,0.00017421,2]
[373220987,1752911444040,-460.0,0.00017421,2]
[373220988,1752911444050,-460.0,0.00017422,2]
[373220989,1752911444060,-331.19866621,0.00017422,2]
[373220990,1752911444070,-460.0,0.00017422,2]
[373220991,1752911444080,-460.0,0.00017422,2]
[373220992,1752911444089,-460.0,0.00017422,2]
[373220993,1752911444099,-151.80139244,0.00017423,2]
[373220994,1752911444108,-500.0,0.000175,2]
[373220995,1752911444117,-500.0,0.00017515,2]
[373220996,1752911444127,-500.0,0.00017522,2]
[373220997,1752911444136,-500.69722503,0.00017522,2]
[373220998,1752911444146,-500.0,0.00017522,2]
[373220999,1752911444155,-500.0,0.00017557,2]
[373221000,1752911444165,-500.0,0.00017557,2]
[373221001,1752911444174,-500.0,0.00017575,2]
[373221002,1752911444183,-500.0,0.00017575,2]
[373221003,1752911444194,-302.17969699,0.00017575,2]
[373221004,1752911444204,-500.0,0.00017575,2]
[373221005,1752911444213,-460.0,0.00017692,2]
[373221006,1752911444223,-460.0,0.00017693,2]
[373221007,1752911444232,-1993.92,0.00017693,2]
[373221008,1752911444242,-460.0,0.00017693,2]
[373221009,1752911444252,-460.0,0.00017693,2]
[373221010,1752911444261,-1236.73,0.00017693,2]
[373221011,1752911444271,-1305.08,0.00017693,2]
[373221012,1752911444281,-475.64,0.00017693,2]
[373221013,1752911444291,-460.0,0.00017693,2]
[373221014,1752911444300,-460.0,0.00017693,2]
[373221015,1752911444310,-523.1,0.00017693,2]
[373221016,1752911444319,-460.0,0.00017693,2]
[373221017,1752911444329,-460.0,0.00017693,2]
[373221018,1752911444339,-460.0,0.00017693,2]
[373221019,1752911444349,-460.0,0.00017693,2]
[373221020,1752911444359,-1546.09,0.00017693,2]
[373221021,1752911444369,-460.0,0.00017693,2]
[373221022,1752911444378,-4334.04,0.00017693,2]
[373221023,1752911444388,-460.0,0.00017693,2]
[373221024,1752911444397,-728.86,0.00017693,2]
[373221025,1752911444407,-460.0,0.00017693,2]
[373221026,1752911444417,-460.0,0.00017693,2]
[373221027,1752911444427,-2066.13,0.00017693,2]
[373221028,1752911444436,-2512.47,0.00017693,2]
[373221029,1752911444447,-2254.93,0.00017693,2]
[373221030,1752911444456,-460.0,0.00017693,2]
[373221031,1752911444465,-588.71,0.00017693,2]
[373221032,1752911444475,-460.0,0.00017693,2]
[373221033,1752911444485,-910.07,0.00017693,2]
[373221034,1752911444494,-460.0,0.00017694,2]
[373221035,1752911444503,-329.1904351,0.00017694,2]
[373221036,1752911444513,-460.0,0.00017694,2]
[373221037,1752911444522,-460.0,0.00017694,2]
[373221038,1752911444531,-460.0,0.00017694,2]
[373221039,1752911444540,-460.0,0.00017694,2]
[373221040,1752911444550,-460.0,0.00017694,2]
[373221041,1752911444559,-460.0,0.00017694,2]
[373221042,1752911444568,-460.0,0.00017694,2]
[373221043,1752911444579,-460.0,0.00017694,2]
[373221044,1752911444588,-344.111953,0.00017694,2]
[373221045,1752911444598,-460.0,0.00017694,2]
[373221046,1752911444607,-460.0,0.00017694,2]
[373221047,1752911444616,-460.0,0.00017694,2]
[373221048,1752911444625,-460.0,0.00017694,2]
[373221049,1752911444634,-460.0,0.00017694,2]
[373221050,1752911444644,-460.0,0.00017694,2]
[373221051,1752911444654,-524.53,0.00017694,2]
[373221052,1752911444663,-460.0,0.00017694,2]
[373221053,1752911444673,-1114.02,0.00017694,2]
[373221054,1752911444683,-460.0,0.00017694,2]
[373221055,1752911444693,-460.0,0.00017694,2]
[373221056,1752911444703,-460.0,0.00017694,2]
[373221057,1752911444712,-460.0,0.00017694,2]
[373221058,1752911444722,-460.0,0.00017694,2]
[373221059,1752911444732,-460.0,0.00017694,2]
[373221060,1752911444742,-460.0,0.00017694,2]
[373221061,1752911444751,-1333.58,0.00017694,2]
[373221062,1752911444760,-460.0,0.00017694,2]
[373221063,1752911444769,-460.0,0.00017694,2]
[373221064,1752911444779,-460.0,0.00017694,2]
[373221065,1752911444788,-460.0,0.00017694,2]
[373221066,1752911444798,-781.21,0.00017694,2]
[373221067,1752911444807,-460.0,0.00017694,2]
[373221068,1752911444817,-750.03,0.00017694,2]
[373221069,1752911444826,-460.0,0.00017694,2]
[373221070,1752911444836,-460.0,0.00017694,2]
[373221071,1752911444845,-460.0,0.00017694,2]
[373221072,1752911444855,-865.2,0.00017694,2]
[373221073,1752911444864,-460.0,0.00017694,2]
[373221074,1752911444874,-582.8,0.00017694,2]
[373221075,1752911444888,-465.02,0.00017694,2]
[373221076,1752911444898,-460.0,0.00017695,2]
[373221077,1752911444908,-538.53226701,0.00017695,2]
[373221078,1752911444922,-460.0,0.00017696,2]
[373221079,1752911444931,-460.0,0.00017696,2]
[373221080,1752911444941,-460.0,0.00017696,2]
[373221081,1752911444950,-460.0,0.00017696,2]
[373221082,1752911444960,-7696.17642814,0.00017776,2]
[373221083,1752911444969,-500.0,0.00017803,2]
[373221084,1752911444981,-502.30893642,0.00017814,2]
[373221085,1752911444994,-839.454303,0.00017859,2]
[373221086,1752911445003,-160.0,0.00017859,2]
[373221087,1752911445013,-214.52603969,0.00017859,2]
[373221088,1752911445022,-12612.80205064,0.00017859,2]
[373221089,1752911445033,-476.34170116,0.00017859,2]
[373221090,1752911445042,-160.0,0.00017859,2]
[373221091,1752911445052,-525.83049785,0.00017859,2]
[373221092,1752911445062,-160.0,0.00017859,2]
[373221093,1752911445072,-230.94145789,0.00017859,2]
[373221094,1752911445082,-215.67360783,0.00017859,2]
[373221095,1752911445091,-160.0,0.00017859,2]
[373221096,1752911445101,-160.0,0.00017859,2]
[373221097,1752911445110,-160.0,0.00017859,2]
[373221098,1752911445120,-160.0,0.00017859,2]
[373221099,1752911445129,-160.0,0.00017859,2]
[373221100,1752911445138,-4841.5124896,0.000179,2]
[373221101,1752911445148,-460.0,0.00017966,2]
[373221102,1752911445158,-460.0,0.00017967,2]
[373221103,1752911445167,-1993.92,0.00017967,2]
[373221104,1752911445176,-460.0,0.00017967,2]
[373221105,1752911445186,-460.0,0.00017967,2]
[373221106,1752911445195,-1236.73,0.00017967,2]
[373221107,1752911445205,-1305.08,0.00017967,2]
[373221108,1752911445214,-475.64,0.00017967,2]
[373221109,1752911445224,-460.0,0.00017967,2]
[373221110,1752911445234,-460.0,0.00017967,2]
[373221111,1752911445243,-523.1,0.00017967,2]
[373221112,1752911445254,-460.0,0.00017967,2]
[373221113,1752911445263,-469.98334508,0.00017967,2]
[373221114,1752911445272,-460.0,0.00017967,2]
[373221115,1752911445282,-460.0,0.00017967,2]
[373221116,1752911445292,-1546.09,0.00017967,2]
[373221117,1752911445302,-460.0,0.00017967,2]
[373221118,1752911445312,-4334.04,0.00017967,2]
[373221119,1752911445322,-460.0,0.00017967,2]
[373221120,1752911445331,-728.86,0.00017967,2]
[373221121,1752911445342,-460.0,0.00017967,2]
[373221122,1752911445353,-460.0,0.00017967,2]
[373221123,1752911445362,-2066.13,0.00017967,2]
[373221124,1752911445372,-2512.47,0.00017967,2]
[373221125,1752911445383,-2254.93,0.00017967,2]
[373221126,1752911445396,-460.0,0.00017967,2]
[373221127,1752911445406,-588.71,0.00017967,2]
[373221128,1752911445415,-460.0,0.00017967,2]
[373221129,1752911445425,-910.07,0.00017967,2]
[373221130,1752911445434,-460.0,0.00017968,2]
[373221131,1752911445444,-460.0,0.00017968,2]
[373221132,1752911445454,-460.0,0.00017968,2]
[373221133,1752911445463,-460.0,0.00017968,2]
[373221134,1752911445472,-460.0,0.00017968,2]
[373221135,1752911445482,-460.0,0.00017968,2]
[373221136,1752911445491,-460.0,0.00017968,2]
[373221137,1752911445500,-460.0,0.00017968,2]
[373221138,1752911445510,-460.0,0.00017968,2]
[373221139,1752911445520,-460.0,0.00017968,2]
[373221140,1752911445529,-460.0,0.00017968,2]
[373221141,1752911445539,-460.0,0.00017968,2]
[373221142,1752911445548,-460.0,0.00017968,2]
[373221143,1752911445558,-460.0,0.00017968,2]
[373221144,1752911445567,-460.0,0.00017968,2]
[373221145,1752911445576,-524.53,0.00017968,2]
[373221146,1752911445586,-460.0,0.00017968,2]
[373221147,1752911445596,-1114.02,0.00017968,2]
[373221148,1752911445605,-240.06681902,0.00017968,2]
[373221149,1752911445615,-460.0,0.00017968,2]
[373221150,1752911445624,-460.0,0.00017968,2]
[373221151,1752911445634,-460.0,0.00017968,2]
[373221152,1752911445644,-460.0,0.00017968,2]
[373221153,1752911445654,-460.0,0.00017968,2]
[373221154,1752911445663,-460.0,0.00017968,2]
[373221155,1752911445673,-1333.58,0.00017968,2]
[373221156,1752911445683,-460.0,0.00017968,2]
[373221157,1752911445693,-460.0,0.00017968,2]
[373221158,1752911445703,-219.60131808,0.00017968,2]
[373221159,1752911445712,-205.52373918,0.00017968,2]
[373221160,1752911445723,-781.21,0.00017968,2]
[373221161,1752911445733,-460.0,0.00017968,2]
[373221162,1752911445743,-750.03,0.00017968,2]
[373221163,1752911445754,-229.87535684,0.00017968,2]
[373221164,1752911445763,-460.0,0.00017968,2]
[373221165,1752911445774,-460.0,0.00017968,2]
[373221166,1752911445784,-865.2,0.00017968,2]
[373221167,1752911445795,-460.0,0.00017968,2]
[373221168,1752911445807,-582.8,0.00017968,2]
[373221169,1752911445818,-465.02,0.00017968,2]
[373221170,1752911445827,-460.0,0.00017969,2]
[373221171,1752911445837,-460.0,0.0001797,2]
[373221172,1752911445847,-460.0,0.0001797,2]
[373221173,1752911445856,-460.0,0.0001797,2]
[373221174,1752911445866,-40786.30330971,0.00018,2]
[373221175,1752911445876,-182.04499252,0.00018,2]
[373221176,1752911445886,-500.0,0.00018048,2]
[373221177,1752911445897,-500.0,0.0001807,2]
[373221178,1752911445906,-500.0,0.0001807,2]
[373221179,1752911445916,-500.0,0.00018079,2]
[373221180,1752911445926,-1000.0,0.00018105,2]
[373221181,1752911445936,-471.66974233,0.00018123,2]
[373221182,1752911445946,-1000.0,0.00018123,2]
[373221183,1752911445956,-1680.0,0.00018133,2]
[373221184,1752911445966,-256.0,0.00018134,2]
[373221185,1752911445975,-240.0,0.00018134,2]
[373221186,1752911445985,-420.0,0.00018134,2]
[373221187,1752911445995,-4841.51248947,0.00018141,2]
[373221188,1752911446008,-1680.0,0.00018223,2]
[373221189,1752911446018,-460.0,0.0001824,2]
[373221190,1752911446029,-460.0,0.00018241,2]
[373221191,1752911446040,-1993.92,0.00018241,2]
[373221192,1752911446050,-460.0,0.00018241,2]
[373221193,1752911446059,-460.0,0.00018241,2]
[373221194,1752911446070,-1236.73,0.00018241,2]
[373221195,1752911446081,-1305.08,0.00018241,2]
[373221196,1752911446091,-475.64,0.00018241,2]
[373221197,1752911446101,-460.0,0.00018241,2]
[373221198,1752911446112,-460.0,0.00018241,2]
[373221200,1752911446122,-523.1,0.00018241,2]
[373221202,1752911446133,-460.0,0.00018241,2]
[373221203,1752911446143,-460.0,0.00018241,2]
[373221204,1752911446153,-460.0,0.00018241,2]
[373221205,1752911446162,-1546.09,0.00018241,2]
[373221206,1752911446173,-460.0,0.00018241,2]
[373221207,1752911446183,-4334.04,0.00018241,2]
[373221208,1752911446193,-460.0,0.00018241,2]
[373221209,1752911446203,-728.86,0.00018241,2]
[373221210,1752911446214,-460.0,0.00018241,2]
[373221211,1752911446223,-460.0,0.00018241,2]
[373221212,1752911446233,-2066.13,0.00018241,2]
[373221213,1752911446243,-2512.47,0.00018241,2]
[373221214,1752911446253,-2254.93,0.00018241,2]
[373221215,1752911446263,-460.0,0.00018241,2]
[373221216,1752911446273,-588.71,0.00018241,2]
[373221217,1752911446285,-460.0,0.00018241,2]
[373221218,1752911446295,-910.07,0.00018241,2]
[373221219,1752911446305,-474.67456265,0.00018242,2]
[373221220,1752911446316,-460.0,0.00018242,2]
[373221221,1752911446327,-460.0,0.00018242,2]
[373221222,1752911446337,-460.0,0.00018242,2]
[373221223,1752911446347,-460.0,0.00018242,2]
[373221224,1752911446356,-460.0,0.00018242,2]
[373221225,1752911446367,-460.0,0.00018242,2]
[373221227,1752911446377,-460.0,0.00018242,2]
[373221229,1752911446386,-460.0,0.00018242,2]
[373221231,1752911446396,-460.0,0.00018242,2]
[373221232,1752911446406,-460.0,0.00018242,2]
[373221233,1752911446415,-460.0,0.00018242,2]
[373221234,1752911446425,-460.0,0.00018242,2]
[373221235,1752911446435,-460.0,0.00018242,2]
[373221236,1752911446447,-460.0,0.00018242,2]
[373221237,1752911446456,-524.53,0.00018242,2]
[373221238,1752911446466,-460.0,0.00018242,2]
[373221239,1752911446475,-1114.02,0.00018242,2]
[373221240,1752911446485,-460.0,0.00018242,2]
[373221241,1752911446496,-204.7379802,0.00018242,2]
[373221242,1752911446506,-460.0,0.00018242,2]
[373221243,1752911446516,-460.0,0.00018242,2]
[373221244,1752911446526,-460.0,0.00018242,2]
[373221245,1752911446536,-460.0,0.00018242,2]
[373221246,1752911446546,-1333.58,0.00018242,2]
[373221247,1752911446556,-528.64053399,0.00018242,2]
[373221248,1752911446565,-460.0,0.00018242,2]
[373221249,1752911446575,-781.21,0.00018242,2]
[373221250,1752911446584,-460.0,0.00018242,2]
[373221251,1752911446595,-750.03,0.00018242,2]
[373221252,1752911446605,-460.0,0.00018242,2]
[373221253,1752911446614,-460.0,0.00018242,2]
[373221254,1752911446624,-865.2,0.00018242,2]
[373221255,1752911446732,-460.0,0.00018242,2]
[373221256,1752911446764,-582.8,0.00018242,2]
[373221257,1752911446774,-465.02,0.00018242,2]
[373221258,1752911446784,-460.0,0.00018243,2]
[373221259,1752911446794,-460.0,0.00018244,2]
[373221260,1752911446803,-460.0,0.00018244,2]
[373221261,1752911446813,-194.1,0.00018244,2]
[373221262,1752911446823,-900.0,0.00018293,2]
[373221263,1752911446833,-273.42693762,0.00018351,2]
[373221264,1752911446842,-4841.51248947,0.00018383,2]
[373221265,1752911446853,-1254.02,0.00018416,3]
[373221266,1752911446863,-627.0,0.00018416,3]
[373221267,1752911446872,-418.0,0.00018416,3]
[373221268,1752911446882,-23509.55092357,0.000185,2]
[373221269,1752911446892,-460.0,0.00018514,2]
[373221270,1752911446901,-460.0,0.00018515,2]
[373221271,1752911446911,-1993.92,0.00018515,2]
[373221272,1752911446920,-460.0,0.00018515,2]
[373221273,1752911446931,-460.0,0.00018515,2]
[373221274,1752911446940,-1236.73,0.00018515,2]
[373221275,1752911446951,-1305.08,0.00018515,2]
[373221276,1752911446961,-475.64,0.00018515,2]
[373221277,1752911446971,-460.0,0.00018515,2]
[373221278,1752911446980,-460.0,0.00018515,2]
[373221279,1752911446990,-523.1,0.00018515,2]
[373221280,1752911447001,-460.0,0.00018515,2]
[373221281,1752911447012,-460.0,0.00018515,2]
[373221282,1752911447022,-460.0,0.00018515,2]
[373221283,1752911447032,-1546.09,0.00018515,2]
[373221284,1752911447043,-460.0,0.00018515,2]
[373221285,1752911447052,-4334.04,0.00018515,2]
[373221286,1752911447062,-460.0,0.00018515,2]
[373221287,1752911447072,-728.86,0.00018515,2]
[373221288,1752911447082,-460.0,0.00018515,2]
[373221289,1752911447092,-2066.13,0.00018515,2]
[373221290,1752911447102,-2512.47,0.00018515,2]
[373221291,1752911447111,-2254.93,0.00018515,2]
[373221292,1752911447121,-460.0,0.00018515,2]
[373221293,1752911447130,-588.71,0.00018515,2]
[373221294,1752911447141,-460.0,0.00018515,2]
[373221295,1752911447150,-910.07,0.00018515,2]
[373221296,1752911447160,-460.0,0.00018516,2]
[373221297,1752911447171,-460.0,0.00018516,2]
[373221298,1752911447181,-460.0,0.00018516,2]
[373221299,1752911447191,-460.0,0.00018516,2]
[373221300,1752911447202,-460.0,0.00018516,2]
[373221301,1752911447211,-460.0,0.00018516,2]